{"text_format":"1","workbook":"xlsx","n_sheets":5,"sheets":["Contents","Introduction ISEVEN","ISEVEN","ISODD","Data Validation"],"not_rendered":{"charts":0,"images":2,"macros":1,"external_links":0,"defined_names":0,"comments":0,"pivot_tables":0},"unopened":[],"bounds":{"document_bytes":16777216,"sheet_cells":100000,"rows_first":2000,"rows_last":500,"rows_between":2000,"halvings":0,"cell_chars":16384,"cell_head_chars":4096},"cells_cut":0,"cells_raw":0,"read":"whole","date_system":"1900"}

{"sheet":"Contents","index":0,"n_rows":47,"n_cols":6,"rows_kept":47,"cut":false,"hidden":false,"merged":[]}
["ISEVEN Function"]
[null,"automateexcel.com/functions/iseven-formula-excel"]
[]
[null,"Table of Contents",null,null,null,"Other Resources"]
[null,"Introduction ISEVEN",null,null,null,"Excel Formulas w/Examples"]
[null,"ISEVEN",null,null,null,"Excel Boot Camp - Learn Excel inside Excel"]
[null,"ISODD",null,null,null,"Excel Functions & Formulas Tutorial"]
[null,"Data Validation"]
[]
[]
[]
[]
[null,"Excel Boot Camp"]
[null,"  Learn Excel Inside Excel"]
[]
[]
[]
[]
[]
[]
[]
[]
[]
[]
[]
[]
[]
[]
[]
[]
[]
[]
[]
[]
[]
[]
[null,"           Learn Excel inside Excel with our Interactive Tutorial"]
[null,"           Automatically Graded Exercises"]
[null,"           Shortcuts & Best Practices \"Work Smarter, not Harder\""]
[]
[]
[]
[]
[]
[]
[]
[null,"Course Contents"]

{"sheet":"Introduction ISEVEN","index":1,"n_rows":16,"n_cols":5,"rows_kept":16,"cut":false,"hidden":false,"merged":[]}
[]
[null,"ISEVEN",null,"=ISEVEN(value)"]
[null,"Use the ISEVENfunction to check if a value is a number. "]
[]
[null,"DATA","ISEVEN","ISODD","EVEN or ODD"]
[null,1,{"$f":"ISEVEN(B6)","v":false},{"$f":"ISODD(B6)","v":true},{"$f":"IF(ISEVEN(B6),\"EVEN\",\"ODD\")","v":"ODD"}]
[null,2,{"$f":"ISEVEN(B7)","v":true},{"$f":"ISODD(B7)","v":false},{"$f":"IF(ISEVEN(B7),\"EVEN\",\"ODD\")","v":"EVEN"}]
[null,0.5,true,false,"EVEN"]
[null,1111,false,true,"ODD"]
[null,2222,true,false,"EVEN"]
[null,9999,false,true,"ODD"]
[null,10000,true,false,"EVEN"]
[]
[null,"automateexcel.com/functions/iseven-formula-excel"]
[]
[null,"Excel Boot Camp - Learn Excel Inside Excel"]

{"sheet":"ISEVEN","index":2,"n_rows":11,"n_cols":2,"rows_kept":11,"cut":false,"hidden":false,"merged":[]}
["DATA","Result"]
[1,{"$f":"ISEVEN(A2)","v":false}]
[2,{"$f":"ISEVEN(A3)","v":true}]
[11,false]
[13,false]
[16,true]
[0.5,true]
[]
[null,"automateexcel.com/functions/iseven-formula-excel"]
[]
[null,"Excel Boot Camp - Learn Excel Inside Excel"]

{"sheet":"ISODD","index":3,"n_rows":11,"n_cols":3,"rows_kept":11,"cut":false,"hidden":false,"merged":[]}
["DATA","ISEVEN","ISODD"]
[1,{"$f":"ISEVEN(A2)","v":false},{"$f":"ISODD(A2)","v":true}]
[2,true,{"$f":"ISODD(A3)","v":false}]
[11,false,true]
[13,false,true]
[16,true,false]
[0.5,true,false]
[]
[null,"automateexcel.com/functions/iseven-formula-excel"]
[]
[null,"Excel Boot Camp - Learn Excel Inside Excel"]

{"sheet":"Data Validation","index":4,"n_rows":11,"n_cols":3,"rows_kept":11,"cut":false,"hidden":false,"merged":[]}
["Range_01","Range_02","Range_03"]
[2457,2047,2403]
[2250,1729,2277]
[2436,2580,2011]
[2466,2262,2491]
[2459,1574,1546]
[2714,2627,1957]
[]
[null,"automateexcel.com/functions/iseven-formula-excel"]
[]
[null,"Excel Boot Camp - Learn Excel Inside Excel"]